Cogmind - Beta 17 @@@ ROGUE MODE // 2026.07.25 @ 15:29:43 // Winter2019/RPGLIKE Player: Gallgagger Result: Destroyed by 99-TNT with 99-TNT's Nukerbomber Performance ------------- Evolutions (1) 500 Regions Visited (5) 1000 Robots Destroyed (22) 110 Value Destroyed (375) 375 Prototype IDs (23) 460 Alien Tech Used (0) 0 Bonus (300) 300 TOTAL SCORE: 2745 Bonus ------- Aligned with FarCom 300 Cogmind --------- Core Integrity 0/600 Matter 245/300 Energy 240/240 System Corruption 0% Temperature Cool (0) Movement Flying (37) Location -8/Mines Parts ------- > --- POWER (1) -------- Nuclear Core > --- PROPULSION (3) --- Flight Unit Flight Unit > --- UTILITY (2) ------ Signal Interpreter Skeleton Box > --- WEAPON (3) ------- Spread Laser Longsword +1 > --- INVENTORY (2) ---- Spread Laser Field Lobotomy Kit (5) Peak State ------------ > --- POWER ------------ Nuclear Core > --- PROPULSION ------- Flight Unit Flight Unit Flight Unit > --- UTILITY ---------- Signal Interpreter Skeleton Box > --- WEAPON ----------- Spread Laser Field Lobotomy Kit Longsword +1 > --- INVENTORY -------- Spread Laser Spread Laser [Rating: 33] Favorites ----------- Power Nuclear Core Power Core Nuclear Core Propulsion Flight Unit Flight Unit Flight Unit Utility Signal Interpreter Device Skeleton Box Processor Signal Interpreter Weapon Spread Laser Energy Gun Spread Laser Ballistic Gun Light Assault Rifle Special Weapon Field Lobotomy Kit Slashing Weapon Longsword +1 Build | -11 -10 -9 -9 -9 -8 ------- Run | Yrd Mat Mat Min Exi Min Slots Evolved 5 | . 2 3 . . . Power . | . . . . . . Propulsion 2 | . 2 . . . . Utility 1 | . . 1 . . . Weapon 2 | . . 2 . . . Parts Attached 15 | 1 3 8 . 3 . Power 1 | . . 1 . . . Engine . | . . . . . . Core 1 | . . 1 . . . Reactor . | . . . . . . Propulsion 5 | . 3 2 . . . Treads . | . . . . . . Leg . | . . . . . . Wheel . | . . . . . . Hover . | . . . . . . Flight 5 | . 3 2 . . . Utility 2 | . . 1 . 1 . Device 1 | . . . . 1 . Storage . | . . . . . . Processor 1 | . . 1 . . . Hackware . | . . . . . . Protection . | . . . . . . Artifact . | . . . . . . Weapon 7 | 1 . 4 . 2 . Energy Gun 4 | . . 4 . . . Energy Cannon . | . . . . . . Ballistic Gun 1 | 1 . . . . . Ballistic Cannon . | . . . . . . Launcher . | . . . . . . Special Weapon 1 | . . . . 1 . Impact Weapon . | . . . . . . Slashing Weapon 1 | . . . . 1 . Piercing Weapon . | . . . . . . Special Melee Weapon . | . . . . . . Unidentified Prototypes . | . . . . . . Parts Lost 1 | . . . . . 1 Power . | . . . . . . Propulsion 1 | . . . . . 1 Utility . | . . . . . . Weapon . | . . . . . . Highest Loss Streak 1 | . . . . . 1 To Critical Strikes . | . . . . . . Average Backups . | . . . 1 1 2 Power . | . . . . . . Propulsion . | . . . . . . Utility . | . . . . . . Weapon . | . . . 1 1 1 Tool/Special . | . . . . . . Unused Backups . | . . . . . . Power . | . . . . . . Propulsion . | . . . . . . Utility . | . . . . . . Weapon . | . . . . . . Tool/Special . | . . . . . . Average Slot Usage (%) 75 | . 36 72 88 94 84 Core 7 | . . 3 11 11 11 Flight 31 | . 13 40 33 33 29 Device 1 | . . . . 5 11 Processor 7 | . . 3 11 11 11 Energy Gun 21 | . . 18 33 30 3 Ballistic Gun 5 | . 22 7 . . . Peak Build Rating 33 | 1 4 13 13 33 31 Average Rating 10 | . 1 8 13 18 24 On Entrance 10 | . 1 4 13 13 31 Avg Prop Armor Cover (%) . | . . . . . . Naked Turns . | . . . . . . Heaviest Build 20 | 1 1 16 16 20 20 Greatest Support 22 | 3 12 17 17 22 22 Greatest Overweight (x) . | . . . . . . Average Overweight (x) . | . . . . . . Largest Inventory Capacity 2 | . . 1 1 2 2 Average Capacity . | . . . 1 1 2 Most Carried 2 | . . 1 1 2 2 Average Carried . | . . . 1 1 2 Final Capacity 2 | . . 1 1 2 2 Final Carried 2 | . . 1 1 2 2 Class Distribution -------------------- 73% | Gunner 26% | Mutant Dominant Class ---------------- Mutant | -10/Materials Gunner | -9/Materials Gunner | -9/Mines Gunner | -9/Exiles Gunner | -8/Mines Resources | -11 -10 -9 -9 -9 -8 ----------- Run | Yrd Mat Mat Min Exi Min Matter Collected 350 | 148 . 50 152 . . Remotely . | . . . . . . Salvage Created 336 | . . 76 260 . . Parts 38 | . 1 9 28 . . Haulers Intercepted . | . . . . . . Recyclers Shooed . | . . . . . . Parts Field Recycled . | . . . . . . Retrieved Matter . | . . . . . . Parts Self-Destructed . | . . . . . . Prevented . | . . . . . . Parts Restored . | . . . . . . Kills | -11 -10 -9 -9 -9 -8 ------- Run | Yrd Mat Mat Min Exi Min Combat Hostiles Destroyed 22 | . 1 7 14 . . Guns 22 | . 1 7 14 . . Classes Destroyed 4 | . 1 1 2 . . Swarmer 17 | . 1 6 10 . . Grunt 1 | . . . 1 . . Brawler 1 | . . . 1 . . Sentry 3 | . . 1 2 . . Best Kill Streak 10 | . 1 3 10 . . Combat Bots Only 10 | . 1 3 10 . . Max Kills in Single Turn 4 | . 1 1 4 . . Gunslinging 2 | . . . 2 . . Exploded . | . . . . . . Melee . | . . . . . . Uniques/NPCs Destroyed . | . . . . . . Combat | -11 -10 -9 -9 -9 -8 -------- Run | Yrd Mat Mat Min Exi Min Hostile Shots Fired 98 | . 19 34 37 . 8 Missed 37 | . 8 10 19 . . Hits 61 | . 11 24 18 . 8 Melee 1 | . . . 1 . . Projectile 60 | . 11 24 17 . 8 AOE 7 | . . . 2 . 5 Damage Taken 1007 | . 126 206 249 . 426 Core 874 | . 111 177 195 . 391 Absorbed by Shields . | . . . . . . Redirected to Core 491 | . 45 94 179 . 173 Core Remaining (%) 92 | 100 85 . . . . Volleys Fired 48 | . 8 27 13 . . Largest 3 | . 1 3 3 . . Hottest 195 | . 20 195 195 . . Shots Fired 84 | . 8 37 39 . . Gun 84 | . 8 37 39 . . Cannon . | . . . . . . Launcher . | . . . . . . Special . | . . . . . . Kinetic 30 | . 8 22 . . . Thermal 54 | . . 15 39 . . Explosive . | . . . . . . Electromagnetic . | . . . . . . Robot Hit Streak 12 | . 2 10 12 . . Robot Miss Streak 9 | . 4 4 9 . . Penetration Max . | . . . . . . Secondary Targets 6 | . . . 6 . . Max Gunslinging Chain 2 | . . . 2 . . Shots Hit Robots 55 | . 3 22 29 . 1 Core Hits 66 | . 2 18 46 . . Critical Kills . | . . . . . . Critical Parts Destroyed . | . . . . . . Critical Strikes . | . . . . . . Melee Attacks 2 | . . . . 1 1 Impact . | . . . . . . Slashing 2 | . . . . 1 1 Piercing . | . . . . . . Sneak Attacks . | . . . . . . Combat Hostiles . | . . . . . . Follow-up Attacks . | . . . . . . Damage Inflicted 682 | . 26 254 356 . 46 Guns 636 | . 26 254 356 . . Cannons . | . . . . . . Explosions . | . . . . . . Melee 46 | . . . . . 46 Ramming . | . . . . . . Kinetic 124 | . 26 98 . . . Thermal 512 | . . 156 356 . . Explosive . | . . . . . . Electromagnetic . | . . . . . . Impact . | . . . . . . Slashing 46 | . . . . . 46 Piercing . | . . . . . . Highest Corruption . | . . . . . . Average Corruption . | . . . . . . Corruption Purged . | . . . . . . Corruption Blocked . | . . . . . . Overload Shots . | . . . . . . Overflow Damage . | . . . . . . Projectiles . | . . . . . . Explosions . | . . . . . . Melee . | . . . . . . Knockbacks . | . . . . . . Impact . | . . . . . . Kinetic . | . . . . . . Secondary . | . . . . . . Self-Inflicted Damage . | . . . . . . Shots . | . . . . . . Rammed . | . . . . . . Targets Rammed . | . . . . . . Kicked . | . . . . . . Crushed . | . . . . . . Highest Temperature 387 | . . 387 207 . . Average Temperature 149 | . . 160 124 . . Received Heat Transfer 93 | . 54 6 33 . . Effects 1 | . . 1 . . . Short Circuit 1 | . . 1 . . . Siege Activations . | . . . . . . Martial Activations . | . . . . . . Shielding Activations . | . . . . . . Robots Disrupted . | . . . . . . Combat Hostiles . | . . . . . . Robots Corrupted . | . . . . . . Combat Hostiles . | . . . . . . Parts Fried . | . . . . . . Impact Corruptions . | . . . . . . Robots Melted . | . . . . . . Combat Hostiles . | . . . . . . Parts Melted . | . . . . . . Heat Transferred 650 | . . 195 455 . . Parts Sabotaged . | . . . . . . Parts Stolen . | . . . . . . Parts Stripped . | . . . . . . Power Chain Reactions . | . . . . . . Alert | -11 -10 -9 -9 -9 -8 ------- Run | Yrd Mat Mat Min Exi Min Maximum Alert Level 1 | . . . 1 . . Low Security (%) 61 | 100 100 100 13 . 100 Level 1 38 | . . . 86 . . Level 2 . | . . . . . . Level 3 . | . . . . . . Level 4 . | . . . . . . Level 5 . | . . . . . . High Security . | . . . . . . Max Security . | . . . . . . Peak Influence 328 | . 40 138 328 . . Initial 53 | . . 8 53 . . Average 145 | . 17 70 271 . . Influence Increases 615 | . 50 200 365 . . Destroy 0b10 Robot/C 440 | . 20 140 280 . . Destroy Leader 70 | . . 30 40 . . Lose Combat Pursuer 105 | . 30 30 45 . . Influence Decreases 615 | . 30 82 195 308 . Entered New Map 405 | . . 12 85 308 . Time Decay 210 | . 30 70 110 . . Squads Dispatched 1 | . 1 . . . . Investigation . | . . . . . . Extermination . | . . . . . . Reinforcement 1 | . 1 . . . . Assault . | . . . . . . Garrison . | . . . . . . Intercept . | . . . . . . Searches Triggered . | . . . . . . Construction Impeded . | . . . . . . Haulers Reinforced . | . . . . . . Active Scanning Responses . | . . . . . . Cargo Convoy Interrupts . | . . . . . . Stealth | -11 -10 -9 -9 -9 -8 --------- Run | Yrd Mat Mat Min Exi Min Distress Signals 2 | . 1 1 . . . Communications Jammed . | . . . . . . Distress Signals . | . . . . . . Times Spotted 51 | . 7 15 28 . 1 Peak Tracking Total 19 | . 5 6 19 9 1 Tactical Retreats 4 | . 1 1 2 . . Traps | -11 -10 -9 -9 -9 -8 ------- Run | Yrd Mat Mat Min Exi Min Traps Triggered . | . . . . . . Indirectly . | . . . . . . Trap Hack Attempts . | . . . . . . Triggered . | . . . . . . Disarmed . | . . . . . . Reprogrammed . | . . . . . . Reused . | . . . . . . Traps Extracted . | . . . . . . Installed . | . . . . . . Triggered . | . . . . . . Machines | -11 -10 -9 -9 -9 -8 ---------- Run | Yrd Mat Mat Min Exi Min Machines Disabled 1 | . . . . 1 . Max in Single Turn 1 | . . . . 1 . Machines Repaired . | . . . . . . Machines Dismantled . | . . . . . . Machines Sabotaged . | . . . . . . Overloaded Fab Kills . | . . . . . . Hacking | -11 -10 -9 -9 -9 -8 --------- Run | Yrd Mat Mat Min Exi Min Machines Accessed 1 | . . . . 1 . Terminals . | . . . . . . Fabricators . | . . . . . . Repair Stations . | . . . . . . Recycling Units . | . . . . . . Scanalyzers . | . . . . . . Garrison Access . | . . . . . . Total Hacks 1 | . . . . 1 . Successful 1 | . . . . 1 . Failed . | . . . . . . Catastrophic . | . . . . . . Database Lockouts . | . . . . . . Manual 1 | . . . . 1 . Terminals . | . . . . . . Fabricators . | . . . . . . Repair Stations . | . . . . . . Recycling Units . | . . . . . . Scanalyzers . | . . . . . . Garrison Access . | . . . . . . Terminal Hacks 1 | . . . . 1 . Proto ID Catalog 1 | . . . . 1 . Fabricator Hacks . | . . . . . . Repair Station Hacks . | . . . . . . Recycling Unit Hacks . | . . . . . . Scanalyzer . | . . . . . . Garrison Access Hacks . | . . . . . . Unauthorized Hacks . | . . . . . . Terminals . | . . . . . . Fabricators . | . . . . . . Repair Stations . | . . . . . . Recycling Units . | . . . . . . Scanalyzers . | . . . . . . Garrison Access . | . . . . . . Data Cores Recovered . | . . . . . . Used . | . . . . . . Hacking Detections . | . . . . . . Full Trace Events . | . . . . . . Feedback Events . | . . . . . . Feedback Blocked . | . . . . . . Robot Schematics Acquired . | . . . . . . Robots Built . | . . . . . . Authchips . | . . . . . . Time . | . . . . . . Total Robot Build Rating . | . . . . . . Part Schematics Acquired . | . . . . . . Parts Built . | . . . . . . Authchips . | . . . . . . Time . | . . . . . . Total Part Build Rating . | . . . . . . Part Studies Acquired . | . . . . . . Parts Repaired . | . . . . . . Time . | . . . . . . Parts Recycled . | . . . . . . Recycled Matter . | . . . . . . Retrieved Matter . | . . . . . . Retrieved Components . | . . . . . . Parts Scanalyzed . | . . . . . . Part Schematics Acquired . | . . . . . . Parts Damaged . | . . . . . . Bothacking | -11 -10 -9 -9 -9 -8 ------------ Run | Yrd Mat Mat Min Exi Min Used RIF Installer . | . . . . . . Robots Hacked . | . . . . . . Non-combat . | . . . . . . Combat . | . . . . . . Robot Hacks Applied . | . . . . . . Relay Couplers Released . | . . . . . . Fabnet Peak Effective % . | . . . . . . Robots Rewired . | . . . . . . Allies Hacked . | . . . . . . Hacks Repelled . | . . . . . . Allies | -11 -10 -9 -9 -9 -8 -------- Run | Yrd Mat Mat Min Exi Min Total Allies . | . . . . . . Largest Group . | . . . . . . Highest-Rated Group . | . . . . . . Highest-Rated Ally . | . . . . . . Total Orders . | . . . . . . Ally Attacks . | . . . . . . Total Damage . | . . . . . . Kills . | . . . . . . Allies Corrupted . | . . . . . . Allies Melted . | . . . . . . Intel | -11 -10 -9 -9 -9 -8 ------- Run | Yrd Mat Mat Min Exi Min Active Infowar (turns) . | . . . . . . Robot Analysis Total . | . . . . . . Derelict Logs Recovered . | . . . . . . Drone Launches . | . . . . . . Drone Recoveries . | . . . . . . Exploration | -11 -10 -9 -9 -9 -8 ------------- Run | Yrd Mat Mat Min Exi Min Turns Passed 590 | 16 94 154 223 87 16 Spaces Moved 1189 | 28 169 231 504 227 30 Core 127 | 28 99 . . . . Treads . | . . . . . . Legs . | . . . . . . Wheels . | . . . . . . Hover . | . . . . . . Flight 1062 | . 70 231 504 227 30 Fastest Speed 34 | 50 34 34 34 34 34 Average Speed 35 | 50 43 34 34 34 34 Slowest Speed 50 | 50 50 34 34 34 37 Overloaded Moves . | . . . . . . Propulsion Burnouts . | . . . . . . Robots Hopped 13 | . 1 7 5 . . Potential Cave-ins . | . . . . . . Cave-ins Triggered . | . . . . . . Exploration Rate (%) 39 | 3 39 27 90 61 18 Regions Visited 5 Branch Regions 3 Pre-discovered Areas . | . . . . . . Known Exits Taken 3 | . . 1 1 1 . Unknown Exits Taken 2 | 1 1 . . . . Scrap Searched 1 | . . . 1 . . Spaces Dug . | . . . . . . Terrain Destroyed . | . . . . . . Melee . | . . . . . . Projectile . | . . . . . . AOE . | . . . . . . Terrain Rammed . | . . . . . . Walls Destroyed . | . . . . . . Machines Disabled . | . . . . . . Actions | -11 -10 -9 -9 -9 -8 --------- Run | Yrd Mat Mat Min Exi Min Total 1264 | 28 180 268 520 234 34 Wait 7 | . . 5 2 . . Move 1161 | 27 166 217 495 226 30 Hop 10 | . 1 6 3 . . Pick Up 2 | . . . . 2 . Fast Attach 10 | 1 3 5 . 1 . Attach . | . . . . . . Detach 1 | . . 1 . . . Swap 8 | . . 3 . 2 3 Drop 4 | . . 2 . 2 . Fire 48 | . 8 27 13 . . Melee 2 | . . . . 1 1 Ram . | . . . . . . Kick . | . . . . . . Crush . | . . . . . . Escape Stasis . | . . . . . . Rewire . | . . . . . . Trap . | . . . . . . Miscellaneous 11 | . 2 2 7 . . Route ------- -11/Scrapyard -10/Materials -9/Materials -9/Mines (discovered 3 exits: *Mat x2 / *Exi) -9/Exiles -8/Mines History --------- Turn | Location | Event 3 | -11/Scrapyard | Discovered new exit (range 15) 17 | -11/Scrapyard | Entered Materials 85 | -10/Materials | Upgraded with Propulsion slot (x2) 99 | -10/Materials | Discovered new exit (range 5) 111 | -10/Materials | Entered another Materials area 113 | -9/Materials | Reached level 2 179 | -9/Materials | Upgraded with Weapon slot (x2) 183 | -9/Materials | Upgraded with Utility slot (x1) 263 | -9/Materials | Discovered new exit (range 6) 265 | -9/Materials | Identified exit to Mines 265 | -9/Materials | Entered Mines 292 | -9/Mines | Reached level 3 329 | -9/Mines | Destroyed 10 combat bots 435 | -9/Mines | A weapon hastily lodged in a ceiling crevice suddenly fell to the ground 445 | -9/Mines | Assembled infested the area 449 | -9/Mines | Build established: Gunner 458 | -9/Mines | Discovered new exit (range 9) 462 | -9/Mines | Discovered new exit (range 15) 467 | -9/Mines | Reached level 4 473 | -9/Mines | Identified exit to Materials 486 | -9/Mines | Deemed a non-threat by the Exiles lab entrance 486 | -9/Mines | Discovered new exit (range 5) 487 | -9/Mines | Identified exit to Exiles 488 | -9/Mines | Entered Exiles 497 | -9/Exiles | Met 8R-AWN 502 | -9/Exiles | Met EX-HEX 512 | -9/Exiles | Met EX-BIN 516 | -9/Exiles | Aligned with FarCom system 516 | -9/Exiles | Given EX-Vault access code 524 | -9/Exiles | Opened EX-Vault 528 | -9/Exiles | Found Skeleton Box 530 | -9/Exiles | Found Field Lobotomy Kit 533 | -9/Exiles | Found Longsword +1 541 | -9/Exiles | Warned to stay clear of 0b10 Research branches 553 | -9/Exiles | Met EX-DEC 560 | -9/Exiles | Attacked by the Exiles 568 | -9/Exiles | Discovered new exit (range 14) 573 | -9/Exiles | Identified exit to Mines 575 | -9/Exiles | Stole three prototypes: Longsword +1, Skeleton Box, Field Lobotomy Kit 575 | -9/Exiles | Entered Mines 588 | -8/Mines | 99-TNT came to Exiles' defense 590 | -8/Mines | Core integrity fell below 50% 590 | -8/Mines | Core integrity fell below 20% 591 | -8/Mines | Destroyed by 99-TNT with 99-TNT's Nukerbomber Last Messages --------------- errands. I'm not complaining though, nope, not me! I get that having only half of the bot ever arrive at its destination is tough on maintenance, and they said there likely wouldn't be any breakthroughs in the near term so they're doing FarCom instead. EX-DEC: Ah I see we have a visitor. One wrong move in here and I'll invert your atomic chain! 00553_ Upgraded: Ranged Accuracy (+5) 00555_ EX-DEC: "Oops, I hope HEX didn't hear that..." 00559_ Machine disabled. 00560_ EXILES: Hostile robot within lab perimeter. Defensive protocols time, folks! 00568_ EXIT=FOUND 00573_ EXIT=IDENTIFIED: MINES 00574_ Dropped Spread Laser. A strange signal echoes through the mines. LOCATION=MINES GOAL=ESCAPE 00588_ 99-TNT: "I came as fast as I could... Wait, it was you!" 00589_ Flight Unit destroyed. Map ----- +----------------------------------------------------+ | ???????????????????????????????????????????????? | | ???????????????????????????????????????????????? | | ???????????????????????????????????????????????? | | ???????????????????????????????????????????????? | | ???????????????????????????????????????????????? | | ???????????????????????????????????????????????? | | ???????????????????????????????????????????????? | | ???????????????????????????????????????????????? | | ???????????????????????????????????????????????? | | ???????????????????????????????????????????????? | | ???????????????????????????????????????????????? | | ???????????????????????????????????????????????? | | ???????????????????????????????????????????????? | | ????????????????#?????????#????????????????????? | | ?????????????? ####???## ?????????? ??#?????? | | ?????????????? #?## ????????? ?? ?????? | | ?????????????? ## ???????? "?? ?????? | | ??????????????? ??????? """ ?????? | | ???????????????? #?????? """ ?????? | | ????????????????? #????? ? ##???? | | ??????????????????? ###### ?? ##??? | | ????????????????????# # # ???? #??? | | ?????????????????????# #??? ##?? | | ????????????????????## # #???# #?? | | ???????????????????## #???????# #?? | | ???????????????????# d@ #???????# #?? | | ???????????????????# ######### #?? | | ???????????????????# t #?? | | ??????????????????# t## #?? | | ???????????????? ??## #### #?? | | ?????????????? ????####### #??## #?? | | ????????????? ???????????## #???# #?? | | ????????????# ?????????????### #???## #?? | | ?????????????# ?????????????????####????## #?? | | ?????????????##???????????????????????????# #?? | | ??????????????????????????????????????????# #?? | | ????????????????????????????????????????### #?? | | ????????????????????????????????????????# #?? | | ????????????????????????????????????????# #?? | | ???????????????????????????????????????## ###?? | | ??????????????????????????????????????##] #???? | | ??????????????????????????????????##### ! #???? | | ?????????????????????????????????## #???? | | ?????????????????????????????????# ! #???? | | ????????????????????????????????# ! [ ##???? | | ???????????????????????????????# ##????? | | ???????????????????????????????#! #?????? | | ???????????????????????????????## ### ##?????? | | ????????????????????????????????##??#####??????? | | ???????????????????????????????????????????????? | +----------------------------------------------------+ Best States ------------- Heat Dissipation 91 Energy Generation 24 Energy Capacity 240 Matter Stores 300 Matter Capacity 300 Sight Range 16 Terrain Scan Density 10 Evasion (%) 63 Item Schematics ----------------- None Robot Schematics ------------------ None Fabricated ------------ Nothing Repaired ---------- Nothing Studied --------- None Alien Tech Used ----------------- None Achievements -------------- None Challenges ------------ None RPGLIKE | -11 -10 -9 -9 -9 -8 --------- Run | Yrd Mat Mat Min Exi Min Levels Raised 3 | . . 1 2 . . XP Earned 8400 | 3000 100 2350 2100 350 500 XP Spent 7450 | . 1300 3120 1530 1500 . Upgrades 23 | . 2 9 9 3 . Propulsion Slot 2 | . 2 . . . . Utility Slot 1 | . . 1 . . . Weapon Slot 2 | . . 2 . . . Heat Dissipation 11 | . . 2 9 . . Energy Generation 2 | . . 2 . . . Mass Support 2 | . . 1 . 1 . Inventory Capacity 2 | . . 1 . 1 . Ranged Accuracy 1 | . . . . 1 . Protomatter Created 121 | . 15 31 75 . . Integrity Restored 214 | . 28 45 141 . . Core 210 | . 24 45 141 . . Parts 4 | . 4 . . . . Protomatter Decayed 11 | . . 3 8 . . Game ------ Seed ThiefGravjetLauncher Manual? 0 Play Time 00:06:08 Cumulative 688.8 hours Start 2026.07.25 @ 15:23:23 End 2026.07.25 @ 15:29:43 Sessions 1 Manual Loads 0 Difficulty Rogue Special Mode Winter2019/RPGLIKE Game No. 349 Rogue 195 Adventurer 154 Explorer 0 Win Type - Total 24 Types 4/6/5/3/2/1/0/1/1/1 Lore% 95 Gallery% 89 Achievement% 68 Wizard Run 0 Options --------- Layout 0 ASCII 0 Keyboard 0 Movement Numpad Keybinds 0 Fullscreen 2 Font 18/SmallcapsGlow Map View 76x50 Zoom Use 0% Tactical HUD 1 Map Filters NONE Filters NONE Steam 1 RUN: 45367ed4-5ab4-4ebf-9900-be26d231a066